bitfinex-derivatives/quotes_SOLF0:USTF0_20250901
["timestamp","ask_amount","ask_price","bid_price","bid_amount"]
[1756729267914,0.03285053,199.61,199.51,7.99]
[1756729268102,2.20761432,199.59,199.51,7.99]
[1756729268302,0.12285053,199.61,199.51,7.99]
[1756729268508,2.20761432,199.58,199.51,7.99]
[1756729268908,8.48,199.57,199.51,7.99]
[1756729270415,2.24587786,199.58,199.51,7.99]
[1756729270714,10.92,199.57,199.51,7.99]
[1756729271015,10.92,199.57,199.46,2.20761432]
[1756729271213,10.92,199.57,199.47,7.99]
[1756729271818,0.03331992,199.54,199.47,7.99]
[1756729273517,0.03331992,199.54,199.42,341.1129]
[1756729273518,2.20761432,199.52,199.43,7.99]
[1756729273921,2.20761432,199.52,199.39,7.99]
[1756729274222,2.24567883,199.49,199.39,7.99]
[1756729274618,2.24567883,199.49,199.39,10.19761432]
[1756729274816,2.24567883,199.49,199.4,7.99]
[1756729275923,0.03806451,199.49,199.4,7.99]
[1756729276322,0.03806451,199.49,199.4,10.19761432]
[1756729277615,28.03806451,199.49,199.4,10.19761432]
[1756729277923,28.03806451,199.49,199.43,0.03268946]
[1756729278125,0.03806451,199.49,199.43,0.03268946]
[1756729280022,0.03806451,199.49,199.43,8.02268946]
[1756729283819,339.00761432,199.59,199.46,7.99]
[1756729284024,339.00761432,199.59,199.49,7.99]
[1756729284225,336.8,199.59,199.49,7.99]
[1756729284521,336.8,199.59,199.52,7.99]
[1756729285025,336.8,199.59,199.54,0.0384212]
[1756729285927,336.8,199.59,199.55,7.99]
[1756729286126,125.00761432,199.62,199.54,0.0384212]
[1756729286327,125.12761432,199.62,199.54,0.0384212]
[1756729289122,2.20761432,199.59,199.54,0.0384212]
[1756729289326,0.12,199.58,199.54,0.0384212]
[1756729289726,2.20761432,199.59,199.54,0.0384212]
[1756729289926,2.32761432,199.59,199.54,0.0384212]
[1756729290428,0.12,199.58,199.54,0.0384212]
[1756729290723,2.20761432,199.59,199.54,0.0384212]
[1756729291022,16.14,199.58,199.54,0.0384212]
[1756729291230,16.14,199.58,199.54,8.0284212]
[1756729291623,16.14,199.58,199.54,0.0384212]
[1756729291823,16.14,199.58,199.55,7.99]
[1756729292025,16.14,199.58,199.54,0.0384212]
[1756729293228,16.26,199.58,199.54,0.0384212]
[1756729293831,19.22003529,199.58,199.54,0.0384212]
[1756729294325,0.12,199.57,199.54,0.0384212]
[1756729294536,19.22003529,199.58,199.54,0.0384212]
[1756729295026,0.87242097,199.58,199.54,8.0284212]
[1756729295232,32.84,199.61,199.54,8.0284212]
[1756729295635,0.87233349,199.62,199.54,8.0284212]
[1756729296133,48.76,199.64,199.54,8.0284212]
[1756729297836,65.37214766,199.65,199.54,8.0284212]
[1756729298231,80.21214766,199.65,199.54,8.0284212]
[1756729298834,94.27214766,199.65,199.54,8.0284212]
[1756729299035,107.59214766,199.65,199.54,8.0284212]
[1756729300036,120.15214766,199.65,199.54,8.0284212]
[1756729302738,120.03214766,199.65,199.54,8.0284212]
[1756729303542,0.87214766,199.65,199.56,8.15]
[1756729303737,2.32761432,199.69,199.58,2.20761432]
[1756729303931,2.32761432,199.69,199.59,8.15]
[1756729304132,3.19963086,199.69,199.59,8.15]
[1756729304341,3.19963086,199.69,199.62,0.03434281]
[1756729305741,0.12,199.65,199.62,0.03434281]
[1756729308238,2.20761432,199.66,199.62,0.03434281]
[1756729309038,0.12,199.65,199.62,0.03434281]
[1756729309745,2.20761432,199.66,199.62,0.03434281]
[1756729309938,0.12,199.65,199.62,0.03434281]
[1756729310134,123.0,199.64,199.62,0.03434281]
[1756729310335,123.12,199.64,199.62,0.03434281]
[1756729312139,0.12,199.63,199.62,0.03434281]
[1756729314247,123.0,199.64,199.62,0.03434281]
[1756729314642,123.12,199.64,199.62,0.03434281]
[1756729316750,123.0,199.64,199.62,0.03434281]
[1756729319441,3.07963086,199.69,199.62,0.03434281]
[1756729319746,122.8,199.68,199.62,0.03434281]
[1756729324051,0.87201654,199.69,199.62,0.03434281]
[1756729324351,122.98,199.69,199.63,8.15]
[1756729325748,459.88,199.71,199.63,8.15]
[1756729330160,2.20761432,199.74,199.65,10.05761432]
[1756729330460,122.86,199.71,199.65,10.05761432]
[1756729330861,0.97169981,199.75,199.66,0.0328928]
[1756729331167,15.7,199.74,199.66,0.0328928]
[1756729331466,29.64,199.75,199.66,0.0328928]
[1756729331661,29.64,199.75,199.65,10.05761432]
[1756729331866,29.64,199.75,199.69,0.0363103]
[1756729332260,0.1,199.76,199.69,0.0363103]
[1756729332466,122.88,199.77,199.69,0.0363103]
[1756729335656,0.87155791,199.78,199.7,2.20761432]
[1756729335861,0.87155791,199.78,199.7,10.05761432]
[1756729336056,122.82,199.8,199.73,2.20761432]
[1756729336767,122.82,199.8,199.75,0.03722327]
[1756729336963,122.92,199.8,199.75,0.03722327]
[1756729339268,122.82,199.8,199.75,0.03722327]
[1756729341570,122.92,199.8,199.75,0.03722327]
[1756729344673,0.1,199.79,199.75,0.03722327]
[1756729347277,122.82,199.8,199.75,0.03722327]
[1756729347465,122.82,199.8,199.75,7.88722327]
[1756729348472,122.82,199.8,199.75,0.03722327]
[1756729348668,122.82,199.8,199.75,2.24483759]
[1756729349572,122.92,199.8,199.75,0.03722327]
[1756729353275,0.1,199.79,199.75,0.03722327]
[1756729353571,122.82,199.8,199.75,0.03722327]
[1756729353975,0.1,199.79,199.75,0.03722327]
[1756729354176,122.82,199.8,199.75,0.03722327]
[1756729354476,0.1,199.79,199.75,0.03722327]
[1756729354670,122.82,199.8,199.75,0.03722327]
[1756729355067,0.1,199.79,199.75,0.03722327]
[1756729355469,122.82,199.8,199.75,0.03722327]
[1756729355773,0.1,199.79,199.75,0.03722327]
[1756729355975,122.82,199.8,199.75,0.03722327]
[1756729356474,0.1,199.79,199.75,0.03722327]
[1756729356673,122.82,199.8,199.75,0.03722327]
[1756729356871,0.1,199.79,199.75,0.03722327]
[1756729357076,122.82,199.8,199.75,0.03722327]
[1756729357272,0.1,199.79,199.75,0.03722327]
[1756729357678,122.82,199.8,199.75,0.03722327]
[1756729358577,0.11,199.79,199.75,0.03722327]
[1756729359073,125.89910675,199.8,199.75,0.03722327]
[1756729359272,125.89910675,199.8,199.66,2.20761432]
[1756729359472,0.08,199.76,199.66,2.20761432]
[1756729359673,0.08,199.76,199.64,7.59]
[1756729360679,0.0364721,199.72,199.64,7.59]
[1756729361181,0.0364721,199.72,199.62,2.20761432]
[1756729361781,0.0364721,199.72,199.63,7.59]
[1756729361980,0.0364721,199.72,199.66,7.59]
[1756729364780,0.0364721,199.72,199.64,2.20761432]
[1756729365077,2.28761432,199.74,199.64,2.20761432]
[1756729365482,0.03222259,199.7,199.64,2.20761432]
[1756729366682,0.03222259,199.7,199.63,7.59]
[1756729368780,0.03222259,199.7,199.64,2.20761432]
[1756729369184,0.03222259,199.7,199.65,7.59]
[1756729369876,0.03222259,199.7,199.64,2.20761432]
[1756729369877,0.03222259,199.7,199.68,7.59]
[1756729370082,0.03222259,199.7,199.69,12.11694759]
[1756729370681,3.07910675,199.8,199.69,12.11694759]
[1756729370891,13.84,199.79,199.69,7.59]
[1756729371085,13.84,199.79,199.7,4.52837032]
[1756729371283,13.84,199.79,199.71,4.52837032]
[1756729371584,0.87149243,199.8,199.72,4.52837032]
[1756729371887,122.68,199.79,199.73,4.52837032]
[1756729372089,122.79,199.79,199.74,4.52837032]
[1756729372387,122.79,199.79,199.75,4.52837032]
[1756729372588,122.79,199.79,199.76,4.52837032]
[1756729372787,122.79,199.79,199.77,4.52837032]
[1756729372988,122.79,199.79,199.78,4.52837032]
[1756729373484,0.87149243,199.8,199.78,4.52837032]
[1756729373689,123.55149243,199.8,199.79,4.52837032]
[1756729374590,123.67149243,199.8,199.79,4.52837032]
[1756729375887,124.17149243,199.8,199.79,4.40837032]
[1756729377189,126.37910675,199.8,199.79,4.40837032]
[1756729377792,125.87910675,199.8,199.79,4.40837032]
[1756729377987,125.87910675,199.8,199.77,0.03208606]
[1756729381992,3.19910675,199.8,199.77,0.03208606]
[1756729382193,122.68,199.79,199.77,0.03208606]
[1756729382597,0.87149243,199.8,199.77,0.03208606]
[1756729382789,122.68,199.79,199.77,7.62208606]
[1756729383391,122.68,199.79,199.78,7.59]
[1756729384490,122.66,199.82,199.77,0.03208606]
[1756729384689,122.66,199.82,199.78,7.59]
[1756729386892,122.66,199.82,199.77,0.03208606]
[1756729387696,122.66,199.82,199.77,7.62208606]
[1756729387891,122.66,199.82,199.78,4.53585381]
[1756729388097,122.66,199.82,199.79,4.53585381]
[1756729388297,122.66,199.82,199.8,4.53585381]
[1756729388493,122.66,199.82,199.81,4.53585381]
[1756729391198,122.66,199.82,199.81,4.53914425]
[1756729391499,122.64,199.82,199.81,4.53914425]
[1756729393900,123.14,199.82,199.81,4.53914425]
[1756729394095,124.01130696,199.82,199.81,4.53914425]
[1756729396003,126.21892128,199.82,199.81,4.53914425]
[1756729396903,123.51130696,199.82,199.81,4.53914425]
[1756729397798,122.64,199.82,199.81,4.53914425]
[1756729397994,77.06786178,199.88,199.81,4.53914425]
[1756729398201,90.32,199.87,199.82,4.53914425]
[1756729398398,91.19113247,199.87,199.83,4.53914425]
[1756729398603,91.19113247,199.87,199.84,4.53914425]
[1756729398805,91.19113247,199.87,199.85,4.53914425]
[1756729399001,91.19113247,199.87,199.83,0.03247271]
[1756729399300,91.19113247,199.87,199.84,4.57835046]
[1756729399500,91.19113247,199.87,199.85,4.57835046]
[1756729399705,91.19113247,199.87,199.83,0.03247271]
[1756729399908,91.19113247,199.87,199.84,4.57700697]
[1756729400199,0.87113247,199.87,199.85,4.57700697]
[1756729400405,122.64,199.87,199.86,4.57700697]
[1756729401802,122.64,199.87,199.86,4.59555106]
[1756729402605,122.64,199.87,199.83,0.03247271]
[1756729402806,122.64,199.87,199.84,12.40436545]
[1756729403007,122.64,199.87,199.85,4.59436545]
[1756729403204,122.64,199.87,199.86,4.59436545]
[1756729405911,0.87096895,199.9,199.86,12.40436545]
[1756729406210,122.62,199.91,199.87,4.59436545]
[1756729406404,122.62,199.91,199.88,4.59436545]
[1756729406600,122.62,199.91,199.89,4.59436545]
[1756729406806,122.62,199.91,199.9,4.59436545]
[1756729408910,122.62,199.91,199.9,4.70760577]
[1756729412412,122.62,199.91,199.9,4.70858689]
[1756729412617,122.62,199.91,199.88,0.03400166]
[1756729412914,122.62,199.91,199.89,4.70896204]
[1756729413108,122.62,199.91,199.88,0.03400166]
[1756729413310,122.62,199.91,199.89,4.70988269]
[1756729413507,122.62,199.91,199.9,4.70988269]
[1756729416117,122.62,199.91,199.88,0.03400166]
[1756729416320,0.03315201,199.92,199.89,4.71097128]
[1756729416523,122.58,199.91,199.9,4.7111232]
[1756729416817,122.58,199.91,199.88,0.03400166]
[1756729417016,2.20761432,199.9,199.88,0.03400166]
[1756729417414,0.03315201,199.92,199.89,4.71138412]
[1756729417618,122.58,199.91,199.9,4.71138412]
[1756729418719,0.03315201,199.92,199.9,4.71138412]
[1756729418920,122.58,199.91,199.88,0.03400166]
[1756729419120,122.58,199.91,199.89,4.71088588]
[1756729419420,122.58,199.91,199.9,4.71088588]
[1756729422018,0.03315201,199.92,199.9,4.71088588]
[1756729422216,0.03315201,199.92,199.91,4.71088588]
[1756729422423,122.61315201,199.92,199.91,4.71088588]
[1756729423119,122.61315201,199.92,199.91,4.73518195]
[1756729424124,0.03315201,199.92,199.91,4.73518195]
[1756729424316,122.59315201,199.92,199.91,4.73518195]
[1756729428217,0.03315201,199.92,199.91,12.16518195]
[1756729428416,0.03315201,199.92,199.91,12.66518195]
[1756729430420,0.03315201,199.92,199.91,14.87279627]
[1756729433414,0.87059854,199.99,199.92,7.43]
[1756729433619,14.06,200.04,199.95,7.43]
[1756729433923,14.93051143,200.04,199.96,4.72222201]
[1756729434122,14.93051143,200.04,199.97,4.72222201]
[1756729434323,14.93051143,200.04,199.98,4.72222201]
[1756729434526,14.93051143,200.04,199.99,4.72222201]
[1756729434729,14.93051143,200.04,200.0,4.72222201]
[1756729434927,14.93051143,200.04,200.01,4.72222201]
[1756729435123,14.93051143,200.04,199.99,0.03255868]
[1756729435321,14.93051143,200.04,200.0,4.71741054]
[1756729435522,14.93051143,200.04,200.01,4.71741054]
[1756729435720,14.93051143,200.04,199.99,0.03255868]
[1756729435926,14.93051143,200.04,200.0,4.71785791]
[1756729436126,14.93051143,200.04,200.01,4.71785791]
[1756729436323,14.93051143,200.04,199.99,0.03255868]
[1756729437521,2.20761432,200.03,199.99,0.03255868]
[1756729440126,2.20761432,200.0,199.99,0.03255868]
[1756729441731,0.87051143,200.04,199.99,4.75414292]
[1756729441931,122.5,200.01,200.0,4.72158424]
[1756729443022,122.5,200.01,200.0,4.72073775]
[1756729443221,0.87051143,200.04,200.0,4.72073775]
[1756729443425,123.37051143,200.04,200.01,4.72073775]
[1756729443625,123.37051143,200.04,200.02,4.72073775]
[1756729443830,123.37051143,200.04,200.03,4.72073775]
[1756729444533,0.87051143,200.04,200.03,4.72073775]
[1756729444733,122.52,200.05,200.03,4.72073775]
[1756729444931,122.52,200.05,200.04,4.72073775]
[1756729445131,122.52,200.05,199.99,7.46255868]
[1756729445324,122.52,200.05,200.01,7.43]
[1756729445528,122.52,200.05,200.02,4.71871368]
[1756729445730,458.82,200.06,200.03,4.71871368]
[1756729445927,77.1880349,200.17,200.04,4.71871368]
[1756729446130,2.20761432,200.13,200.05,4.71871368]
[1756729446331,122.58,200.12,200.06,4.71871368]
[1756729446532,122.58,200.12,200.0,9.63761432]
[1756729446733,122.58,200.12,200.07,0.03646255]
[1756729447531,2.20761432,200.1,200.07,0.03646255]
[1756729448035,2.20761432,200.1,200.07,0.01646255]
[1756729448036,0.02,200.09,200.07,0.01646255]
[1756729448230,122.62,200.08,200.07,0.01646255]
[1756729451434,123.12,200.08,200.07,0.01646255]
[1756729451836,123.12,200.08,199.97,7.68]
[1756729452035,2.20761432,200.05,199.98,4.73008773]
[1756729452333,2.20761432,200.05,199.99,4.73008773]
[1756729452529,122.62,200.08,200.0,12.41008773]
[1756729452724,122.62,200.07,200.01,4.73008773]
[1756729452924,122.62,200.06,200.02,4.73008773]
[1756729453232,122.62,200.06,200.03,4.73008773]
[1756729453431,122.62,200.06,200.04,4.73008773]
[1756729453634,122.62,200.06,200.02,0.03393203]
[1756729454036,122.62,200.06,200.03,4.72700931]
[1756729454236,122.62,200.06,200.04,4.72700931]
[1756729454536,122.62,200.06,200.02,0.03393203]
[1756729454736,122.62,200.06,200.03,4.72643034]
[1756729454936,122.62,200.06,200.04,4.72643034]
[1756729455138,122.62,200.06,200.02,0.03393203]
[1756729455437,122.62,200.06,200.03,4.725667]
[1756729455633,122.62,200.06,200.02,0.03393203]
[1756729455834,122.62,200.06,200.03,4.72576736]
[1756729456139,122.62,200.06,200.02,0.03393203]
[1756729456333,122.62,200.06,200.03,4.72535173]
[1756729456539,122.58,200.06,200.02,0.03393203]
[1756729456737,0.87002175,200.14,200.03,4.72535173]
[1756729456929,2.20761432,200.08,200.02,0.03393203]
[1756729457130,22.52761432,200.08,200.03,12.40531291]
[1756729457437,22.52761432,200.08,200.03,7.71157803]
[1756729457638,22.52761432,200.08,200.04,12.40490908]
[1756729457938,22.52761432,200.08,200.04,7.68]
[1756729458135,22.52761432,200.08,200.03,0.03157803]
[1756729458340,22.52761432,200.08,200.04,4.72438731]
[1756729458542,22.52761432,200.08,200.03,0.03157803]
[1756729458838,22.52761432,200.08,200.04,4.72488623]
[1756729459040,22.52761432,200.08,200.05,4.72488623]
[1756729459241,22.52761432,200.08,200.03,0.03157803]
[1756729459439,22.52761432,200.08,200.04,4.72392946]
[1756729459740,22.52761432,200.08,200.05,4.72392946]
[1756729459940,2.20761432,200.08,200.04,7.68]
[1756729460143,2.20761432,200.08,200.05,4.72350953]
[1756729460343,42.84,200.1,200.04,7.68]
[1756729460538,66.32,200.1,200.05,4.72383027]
[1756729460735,2.20761432,200.11,200.03,0.03157803]
[1756729460941,95.54,200.1,200.04,4.7238552]
[1756729461141,95.54,200.1,200.05,4.7238552]
[1756729461336,95.54,200.1,200.03,0.03157803]
[1756729461540,95.54,200.1,200.04,4.72438572]
[1756729461742,95.54,200.1,200.05,4.72438572]
[1756729462045,95.54,200.1,200.03,0.03157803]
[1756729462244,95.54,200.1,200.04,4.72411441]
[1756729462542,95.54,200.1,200.05,4.72411441]
[1756729462741,95.54,200.1,200.03,0.03157803]
[1756729462940,95.54,200.1,200.04,4.72603472]
[1756729463141,95.54,200.1,200.05,4.72603472]
[1756729463340,95.54,200.1,200.06,4.72603472]
[1756729463540,95.54,200.1,200.07,4.72603472]
[1756729463743,2.20761432,200.08,200.03,0.03157803]
[1756729463942,2.20761432,200.08,200.04,4.7253216]
[1756729464146,2.20761432,200.08,200.05,4.7253216]
[1756729464347,2.20761432,200.08,200.06,4.7253216]
[1756729464643,2.20761432,200.08,200.07,4.72522194]
[1756729466145,95.54,200.1,200.07,4.72522194]
[1756729466346,95.54,200.1,200.03,0.03157803]
[1756729466555,2.20761432,200.09,200.04,4.7278094]
[1756729466747,2.20761432,200.09,200.05,4.7278094]
[1756729467047,2.20761432,200.09,200.06,4.7278094]
[1756729467247,2.20761432,200.12,200.07,4.7278094]
[1756729467446,2.20761432,200.12,200.08,4.7278094]
[1756729467648,2.20761432,200.12,200.09,4.7278094]
[1756729467847,2.20761432,200.12,200.03,7.68]
[1756729468149,122.46,200.13,200.08,0.03343059]
[1756729468347,2.20761432,200.12,200.09,4.72832812]
[1756729468551,122.46,200.13,200.08,0.03343059]
[1756729468844,2.20761432,200.12,200.09,4.73001058]
[1756729469038,2.20761432,200.12,200.08,0.03343059]
[1756729469236,2.20761432,200.12,200.09,4.72888909]
[1756729469447,2.20761432,200.12,200.1,4.72888909]
[1756729469644,2.20761432,200.12,200.08,0.03343059]
[1756729469848,2.20761432,200.12,200.09,4.72992676]
[1756729470048,2.20761432,200.12,200.1,4.72992676]
[1756729470240,2.20761432,200.12,200.08,0.03343059]
[1756729470442,2.20761432,200.12,200.09,4.7310406]
[1756729470639,2.20761432,200.12,200.1,4.7310406]
[1756729470842,2.20761432,200.12,200.11,4.7310406]
[1756729474252,122.46,200.13,200.11,4.7310406]
[1756729474452,122.46,200.13,200.12,4.7310406]
[1756729474652,122.44,200.13,200.12,4.7310406]
[1756729475050,122.44,200.13,200.08,0.03343059]
[1756729475244,122.44,200.13,200.09,4.73386137]
[1756729475450,122.44,200.13,200.1,4.73386137]
[1756729475643,2.20761432,200.12,200.11,4.73386137]
[1756729476247,124.64761432,200.12,200.11,4.73386137]
[1756729477657,122.44,200.12,200.11,4.73386137]
[1756729477856,124.64761432,200.12,200.11,4.73386137]
[1756729478257,122.44,200.12,200.11,4.73386137]
[1756729478457,124.64761432,200.12,200.11,4.73386137]
[1756729481057,124.64761432,200.12,200.08,0.03343059]
[1756729481260,124.64761432,200.12,200.09,4.64615848]
[1756729481459,124.64761432,200.12,200.1,4.64615848]
[1756729481671,124.64761432,200.12,200.08,0.03343059]
[1756729481871,124.64761432,200.12,200.09,4.6485952]
[1756729482069,124.64761432,200.12,200.1,4.6485952]
[1756729482271,124.64761432,200.12,200.08,0.03343059]
[1756729482472,124.64761432,200.12,200.09,4.64917175]
[1756729482673,124.64761432,200.12,200.1,4.64917175]
[1756729482871,124.64761432,200.12,200.08,0.03343059]
[1756729483069,0.87002175,200.14,200.09,4.65112855]
[1756729483270,122.44,200.13,200.1,4.65112855]
[1756729483476,6.47003058,200.24,200.12,7.68]
[1756729483674,2.20761432,200.22,200.13,4.65208152]
[1756729483874,19.94,200.23,200.14,16.70132461]
[1756729484068,2.20761432,200.22,200.15,9.02132461]
[1756729484275,2.20761432,200.19,200.16,9.02132461]
[1756729484473,36.06,200.18,200.17,9.02132461]
[1756729484874,52.06,200.18,200.17,9.02132461]
[1756729485679,52.06,200.18,200.15,0.0340991]
[1756729485879,52.06,200.18,200.16,9.14516577]
[1756729486078,52.06,200.18,200.17,9.14516577]
[1756729487775,66.94,200.19,200.17,9.14516577]
[1756729487974,66.94,200.19,200.18,9.14516577]
[1756729488286,2.20761432,200.21,200.18,9.14516577]
[1756729488474,2.20761432,200.21,200.19,9.14516577]
[1756729488680,17.68,200.2,200.15,0.0340991]
[1756729488978,17.68,200.2,200.16,9.16570926]
[1756729489179,17.68,200.2,200.17,9.16443508]
[1756729489376,17.68,200.2,200.18,9.16325035]
[1756729489574,17.68,200.2,200.19,9.16325035]
[1756729489777,0.86965214,200.21,200.19,9.16325035]
[1756729489978,34.38,200.2,200.16,7.68]
[1756729490177,34.38,200.2,200.17,9.16166022]
[1756729490478,34.38,200.2,200.18,9.16166022]
[1756729490779,34.38,200.2,200.19,9.16166022]
[1756729491982,35.23,200.2,200.15,0.0340991]
[1756729492286,35.23,200.2,200.16,9.1560457]
[1756729492479,35.23,200.2,200.17,9.1560457]
[1756729492784,34.38,200.2,200.18,9.1560457]
[1756729492982,35.23,200.2,200.19,9.1560457]
[1756729493582,34.38,200.2,200.19,9.1560457]
[1756729496383,34.38,200.2,200.19,9.147565]
[1756729500080,34.38,200.2,200.19,9.1486929]
[1756729500786,35.24,200.2,200.19,9.1486929]
[1756729501184,0.86965214,200.21,200.19,9.1486929]
[1756729501383,17.66,200.2,200.15,0.0340991]
[1756729501583,17.66,200.2,200.16,9.15355664]
[1756729501788,17.66,200.2,200.17,9.15355664]
[1756729501986,17.66,200.2,200.18,9.15355664]
[1756729502185,17.66,200.2,200.19,9.15355664]
[1756729504387,35.84965214,200.21,200.19,9.15355664]
[1756729504689,35.84965214,200.21,200.15,0.0340991]
[1756729504888,35.84965214,200.21,200.16,9.15754388]
[1756729505090,35.84965214,200.21,200.17,9.15754388]
[1756729505385,35.84965214,200.21,200.18,9.15754388]
[1756729505579,36.70965214,200.21,200.19,9.15754388]
[1756729505780,36.70965214,200.21,200.15,0.0340991]
[1756729505982,3.06761432,200.19,200.16,9.15785068]
[1756729506179,3.06761432,200.19,200.17,9.15785068]
[1756729506485,2.20761432,200.19,200.15,0.0340991]
[1756729506685,2.20761432,200.19,200.16,9.16205475]
[1756729506887,0.86,200.2,200.17,9.16205475]
[1756729507089,3.06761432,200.2,200.18,9.16174856]
[1756729507289,3.06761432,200.2,200.19,4.3868476]
[1756729507489,54.62761432,200.2,200.19,4.3868476]
[1756729507690,54.62761432,200.2,200.15,0.0340991]
[1756729507890,3.06761432,200.2,200.16,9.15920512]
[1756729508091,18.32,200.19,200.17,9.15920512]
[1756729508289,18.32,200.19,200.18,9.15920512]
[1756729509186,19.17,200.19,200.18,9.15920512]
[1756729509883,19.17,200.19,200.15,0.0340991]
[1756729510090,2.20761432,200.17,200.16,9.16420603]
[1756729510284,3.05761432,200.17,200.16,9.16420603]
[1756729510684,2.20761432,200.17,200.16,9.16420603]
[1756729510895,2.20761432,200.18,200.16,9.16420603]
[1756729511092,2.20761432,200.18,200.17,9.16420603]
[1756729511293,124.56761432,200.18,200.17,9.16420603]
[1756729511489,1.71965214,200.21,200.17,9.16420603]
[1756729511791,124.56761432,200.2,200.18,9.16591274]
[1756729511992,124.56761432,200.2,200.15,0.0340991]
[1756729512192,124.56761432,200.2,200.16,9.18074462]
[1756729512392,124.56761432,200.2,200.17,9.18074462]
[1756729512692,124.56761432,200.2,200.18,9.18074462]
[1756729512890,124.56761432,200.2,200.15,0.0340991]
[1756729513096,124.56761432,200.2,200.16,9.18356038]
[1756729513284,124.56761432,200.2,200.17,9.18356038]
[1756729513488,0.85,200.19,200.18,9.18356038]
[1756729513684,3.05761432,200.19,200.18,9.18356038]
[1756729513984,3.05761432,200.19,200.15,0.0340991]
[1756729513985,2.25702734,200.19,200.15,0.0340991]
[1756729514185,1.40702734,200.16,200.15,0.0340991]
[1756729515896,2.25702734,200.16,200.15,0.0340991]
[1756729516292,1.40702734,200.16,200.15,0.0340991]
[1756729518392,123.76702734,200.16,200.15,0.0340991]
[1756729519391,1.40702734,200.16,200.15,0.0340991]
[1756729519591,122.36,200.17,200.16,8.15]
[1756729519788,122.36,200.17,200.15,0.0340991]
[1756729519989,2.19776037,200.2,200.15,0.0340991]
[1756729520396,0.86965214,200.21,200.15,8.1840991]
[1756729520690,122.36,200.2,200.16,8.15]
[1756729521085,122.36,200.2,200.15,0.0340991]
[1756729522597,122.36,200.2,200.16,8.15]
[1756729523094,0.86965214,200.21,200.15,0.0340991]
[1756729523295,122.36,200.2,200.16,8.15]
[1756729523499,122.36,200.2,200.15,0.0340991]
[1756729523798,123.22965214,200.21,200.16,8.15]
[1756729523997,123.22965214,200.21,200.15,0.0340991]
[1756729524193,123.22965214,200.21,200.15,8.1840991]
[1756729526087,0.86965214,200.21,200.17,8.15]
[1756729526291,335.88,200.23,200.18,4.70692078]
[1756729526488,335.88,200.23,200.19,4.70692078]
[1756729526694,122.34,200.24,200.2,4.70708584]
[1756729526898,122.34,200.24,200.21,12.85708584]
[1756729527291,122.34,200.29,200.22,4.70628051]
[1756729527493,2.19776037,200.28,200.23,4.70628051]
[1756729527797,3.04776037,200.25,200.24,4.70628051]
[1756729528003,0.85,200.24,200.12,8.15]
[1756729528202,122.38,200.23,200.12,8.15]
[1756729528499,2.19776037,200.21,200.12,8.15]
[1756729529296,0.03279333,200.19,200.12,8.15]
[1756729529898,2.19776037,200.18,200.09,4.1597477]
[1756729530199,119.14,200.17,200.08,8.15]
[1756729530993,0.03162227,200.15,200.08,8.15]
[1756729531191,0.03162227,200.15,200.09,2.19776037]
[1756729531396,0.03162227,200.15,200.1,8.15]
[1756729531700,0.03162227,200.15,200.1,8.65]
[1756729532496,0.03162227,200.15,200.11,8.15]
[1756729532698,0.03162227,200.15,200.1,8.15]
[1756729532898,0.03162227,200.15,200.09,2.19776037]
[1756729533099,0.03162227,200.15,200.1,8.15]
[1756729533401,0.03162227,200.15,200.09,2.69776037]
[1756729533798,0.03162227,200.15,200.09,6.85750807]
[1756729534198,0.03162227,200.15,200.1,8.15]
[1756729534400,0.03162227,200.15,200.09,6.85750807]
[1756729534701,0.03162227,200.15,200.1,8.15]
[1756729534899,0.03162227,200.15,200.09,8.15]
[1756729535806,0.03162227,200.15,200.08,4.1597477]
[1756729536007,0.03162227,200.15,200.07,8.15]
[1756729539912,0.03162227,200.15,200.08,4.54047634]
[1756729540110,0.03162227,200.15,200.09,4.54047634]
[1756729540409,0.03162227,200.15,200.1,4.54047634]
[1756729540609,0.03162227,200.15,200.11,4.54047634]
[1756729540807,0.03162227,200.15,200.12,4.54047634]
[1756729541007,0.03162227,200.15,200.13,4.54047634]
[1756729541207,0.03162227,200.15,200.14,4.54047634]
[1756729544410,0.03162227,200.15,200.14,12.06047634]